bitfinex/quotes_BTCUSD_20260311
["timestamp","ask_amount","ask_price","bid_price","bid_amount"]
[1773253864112,0.00022001,70744.0,70725.0,0.07069635]
[1773253864322,0.00022001,70744.0,70726.0,0.02858671]
[1773253865844,0.00022001,70744.0,70726.0,0.02958671]
[1773253866040,0.00022001,70744.0,70726.0,0.02858671]
[1773253866238,0.00022001,70744.0,70728.0,0.02858671]
[1773253868240,0.00014136,70742.0,70729.0,0.07069236]
[1773253868422,0.00014136,70742.0,70730.0,0.02858671]
[1773253870014,0.00014136,70742.0,70730.0,0.02958671]
[1773253871017,0.00014136,70742.0,70731.0,0.07069036]
[1773253871232,0.00022001,70744.0,70732.0,0.02858671]
[1773253873140,0.00022001,70744.0,70733.0,0.07068836]
[1773253873345,0.00022001,70744.0,70734.0,0.02858671]
[1773253875169,0.00022001,70744.0,70735.0,0.07068636]
[1773253876133,0.07089749,70744.0,70730.0,0.07069136]
[1773253876273,0.02455011,70743.0,70730.0,0.07069136]
[1773253877431,0.07067937,70742.0,70728.0,0.07069136]
[1773253877657,0.07067937,70742.0,70735.0,0.001]
[1773253877982,0.02455011,70743.0,70728.0,0.07069136]
[1773253878185,0.00022001,70744.0,70729.0,0.02858671]
[1773253879394,0.00022001,70744.0,70731.0,0.02858671]
[1773253881413,0.00022001,70744.0,70733.0,0.02502745]
[1773253883382,0.00022001,70744.0,70734.0,0.07068736]
[1773253883644,0.07067837,70743.0,70733.0,0.09571501]
[1773253883946,0.14066275,70742.0,70724.0,0.07089685]
[1773253884098,0.02517397,70740.0,70724.0,0.07089708]
[1773253884297,0.02517397,70739.0,70724.0,0.07089708]
[1773253884491,0.14066275,70739.0,70724.0,0.07089708]
[1773253884692,0.02517397,70741.0,70724.0,0.07089708]
[1773253884934,0.02517397,70740.0,70724.0,0.07089708]
[1773253885134,0.02517397,70741.0,70724.0,0.07089708]
[1773253885710,0.02517397,70737.0,70724.0,0.07089708]
[1773253887463,0.07067487,70747.0,70724.0,0.07089708]
[1773253887617,0.07067211,70750.0,70727.0,0.02502745]
[1773253887802,0.07089365,70748.0,70727.0,0.02502745]
[1773253888223,0.00022001,70748.0,70727.0,0.02502745]
[1773253888832,0.00022001,70748.0,70727.0,0.02602745]
[1773253889071,0.00022001,70743.0,70727.0,0.02502745]
[1773253889482,0.00022001,70743.0,70727.0,0.02602745]
[1773253889664,0.00022001,70743.0,70728.0,0.07069336]
[1773253889866,0.00022001,70743.0,70729.0,0.02502745]
[1773253890673,0.00022001,70748.0,70729.0,0.02502745]
[1773253891583,0.00022001,70748.0,70729.0,0.02602745]
[1773253891793,0.00022001,70748.0,70731.0,0.02502745]
[1773253892387,0.00022001,70751.0,70731.0,0.02502745]
[1773253893921,0.00022001,70751.0,70733.0,0.02502745]
[1773253894127,0.00022001,70755.0,70733.0,0.02502745]
[1773253894373,0.00022001,70761.0,70741.0,0.02502745]
[1773253894930,0.00022001,70771.0,70742.0,0.439344]
[1773253895188,0.0005316,70787.0,70732.0,0.07068936]
[1773253895189,0.0005316,70787.0,70761.0,0.02502745]
[1773253895394,0.02368343,70786.0,70761.0,0.02502745]
[1773253895869,0.07063643,70785.0,70762.0,0.07065939]
[1773253896097,0.09503015,70785.0,70763.0,0.02502745]
[1773253896645,0.07063643,70785.0,70763.0,0.02502745]
[1773253897858,0.07063643,70785.0,70764.0,0.07065739]
[1773253898060,0.02417297,70784.0,70742.0,0.02502745]
[1773253898333,0.02417297,70784.0,70742.0,0.02513902]
[1773253898542,0.00022001,70759.0,70742.0,0.02513902]
[1773253899952,0.00022001,70759.0,70744.0,0.02502745]
[1773253900159,0.07088283,70759.0,70744.0,0.02502745]
[1773253900672,0.00022001,70759.0,70744.0,0.02502745]
[1773253902735,0.07066338,70758.0,70746.0,0.02434088]
[1773253902957,0.07066338,70758.0,70745.0,0.07067637]
[1773253903785,0.07066338,70758.0,70745.0,0.09501725]
[1773253904084,0.07088339,70759.0,70746.0,0.02434088]
[1773253905247,0.07088339,70759.0,70742.0,0.07078994]
[1773253905248,0.02339961,70758.0,70729.0,0.02434088]
[1773253905450,0.02339961,70758.0,70722.0,0.02434088]
[1773253905661,0.02351085,70758.0,70723.0,0.07069806]
[1773253905833,0.02351085,70758.0,70724.0,0.07089689]
[1773253906700,0.02451085,70758.0,70725.0,0.08386372]
[1773253907199,0.02351085,70758.0,70725.0,0.08386372]
[1773253907526,0.07066438,70757.0,70726.0,0.07069535]
[1773253909791,0.07066438,70757.0,70725.0,0.15455907]
[1773253909792,0.07066438,70757.0,70725.0,0.15455972]
[1773253909957,0.07166438,70757.0,70725.0,0.15455972]
[1773253910359,0.07066438,70757.0,70725.0,0.15455972]
[1773253910553,0.07166438,70757.0,70725.0,0.15455972]
[1773253911462,0.07166438,70757.0,70726.0,0.08383079]
[1773253911881,0.07066438,70757.0,70727.0,0.07069436]
[1773253912138,0.07066438,70757.0,70728.0,0.08380143]
[1773253912312,0.07166438,70757.0,70728.0,0.08380143]
[1773253913094,0.001,70757.0,70731.0,0.08380143]
[1773253913322,0.07077463,70758.0,70731.0,0.08380143]
[1773253913537,0.001,70757.0,70731.0,0.08380143]
[1773253913939,0.00011124,70758.0,70733.0,0.08381334]
[1773253914500,0.07065015,70772.0,70740.0,0.12592029]
[1773253914680,0.07087545,70766.0,70741.0,0.08381334]
[1773253915298,0.00022001,70766.0,70741.0,0.08381334]
[1773253915654,0.07087544,70766.0,70741.0,0.08381334]
[1773253916058,0.00022001,70771.0,70751.0,0.08382533]
[1773253916397,0.07087083,70771.0,70751.0,0.08382533]
[1773253916575,0.00022001,70771.0,70751.0,0.08382533]
[1773253916761,0.07087065,70771.0,70751.0,0.08382533]
[1773253918235,0.07087065,70771.0,70753.0,0.08383737]
[1773253919606,0.07065013,70772.0,70753.0,0.08383737]
[1773253919784,0.07064841,70773.0,70753.0,0.08383737]
[1773253919988,0.00022001,70766.0,70753.0,0.08383737]
[1773253920353,0.00022001,70766.0,70755.0,0.08384674]
[1773253920749,0.07064841,70773.0,70755.0,0.08384674]
[1773253922692,0.07064841,70773.0,70757.0,0.08986134]
[1773253924521,0.07086251,70779.0,70757.0,0.08986134]
[1773253924721,0.07086251,70779.0,70759.0,0.08986134]
[1773253927769,0.07086251,70779.0,70761.0,0.08986134]
[1773253927963,0.00022001,70775.0,70761.0,0.08986134]
[1773253929077,0.00022001,70775.0,70761.0,0.06986134]
[1773253930066,0.07064741,70774.0,70750.0,0.11560204]
[1773253930292,0.07064741,70774.0,70751.0,0.04493067]
[1773253933898,0.07064741,70774.0,70753.0,0.04493067]
[1773253934098,0.07064741,70774.0,70749.0,0.07087188]
[1773253934483,0.07064741,70774.0,70749.0,0.11580255]
[1773253934708,0.07064741,70774.0,70750.0,0.04493067]
[1773253935924,0.07164741,70774.0,70751.0,0.11560104]
[1773253936136,0.07164741,70774.0,70752.0,0.04493067]
[1773253936336,0.07064741,70774.0,70752.0,0.04493067]
[1773253936759,0.07164741,70774.0,70752.0,0.04493067]
[1773253937747,0.07264741,70774.0,70752.0,0.04493067]
[1773253937959,0.07100871,70775.0,70754.0,0.04493067]
[1773253938401,0.001,70774.0,70754.0,0.04493067]
[1773253938653,0.07100871,70775.0,70754.0,0.04493067]
[1773253940055,0.07086742,70775.0,70756.0,0.04493067]
[1773253942359,0.07086742,70775.0,70758.0,0.04493067]
[1773253944131,0.07086742,70775.0,70757.0,0.07066438]
[1773253944356,0.07086742,70775.0,70753.0,0.11559905]
[1773253944561,0.07086742,70775.0,70753.0,0.07066838]
[1773253944828,0.07086742,70775.0,70754.0,0.04493067]
[1773253945161,0.07186742,70775.0,70754.0,0.04493067]
[1773253945366,0.07086742,70775.0,70754.0,0.04493067]
[1773253945861,0.07186742,70775.0,70754.0,0.04493067]
[1773253946066,0.07086742,70775.0,70754.0,0.04493067]
[1773253946271,0.07186742,70775.0,70740.0,0.12591884]
[1773253946478,0.14052808,70774.0,70748.0,0.07067336]
[1773253946680,0.23988998,70775.0,70750.0,0.04493067]
[1773253946681,0.14052808,70773.0,70750.0,0.04493067]
[1773253946898,0.14052808,70772.0,70750.0,0.04493067]
[1773253947260,0.14052808,70774.0,70754.0,0.0002]
[1773253948360,0.07064841,70773.0,70755.0,0.07066638]
[1773253949537,0.00144,70772.0,70755.0,0.07066638]
[1773253949713,0.00144,70771.0,70756.0,0.02510335]
[1773253950399,0.07164841,70773.0,70757.0,0.07066438]
[1773253950657,0.00144,70772.0,70758.0,0.02510335]
[1773253951804,0.07064841,70773.0,70758.0,0.02510335]
[1773253952013,0.00144,70772.0,70758.0,0.02510335]
[1773253953653,0.0706504,70771.0,70759.0,0.07066238]
[1773253955649,0.0706504,70771.0,70759.0,0.09548552]
[1773253956141,0.0716504,70771.0,70759.0,0.09548552]
[1773253957521,0.0706504,70771.0,70759.0,0.09548552]
[1773253959000,0.0716504,70771.0,70759.0,0.09548552]
[1773253959586,0.0716504,70771.0,70757.0,0.07086419]
[1773253959781,0.0716504,70771.0,70754.0,0.0002]
[1773253959989,0.14060324,70770.0,70744.0,0.00144]
[1773253960234,0.14060324,70770.0,70742.0,0.09551821]
[1773253960434,0.14060324,70770.0,70744.0,0.00144]
[1773253960816,0.0716504,70771.0,70742.0,0.09551821]
[1773253960817,0.14060324,70769.0,70742.0,0.09551821]
[1773253961021,0.0706534,70768.0,70743.0,0.07211737]
[1773253961727,0.0706534,70768.0,70744.0,0.0245485]
[1773253962295,0.0716534,70768.0,70744.0,0.0245485]
[1773253963359,0.0706534,70768.0,70745.0,0.07067637]
[1773253963518,0.0706534,70768.0,70745.0,0.09522487]
[1773253964259,0.0706534,70768.0,70746.0,0.02445713]
[1773253964417,0.0716534,70768.0,70746.0,0.02445713]
[1773253965011,0.0726534,70768.0,70746.0,0.02445713]
[1773253965452,0.0706534,70768.0,70746.0,0.09513154]
[1773253965688,0.0716534,70768.0,70747.0,0.02436746]
[1773253965893,0.0726534,70768.0,70747.0,0.02436746]
[1773253966218,0.0726534,70768.0,70745.0,0.07067637]
[1773253966219,0.0716534,70768.0,70745.0,0.07067637]
[1773253966431,0.00722566,70730.0,70692.0,1e-08]
[1773253966642,0.00722566,70730.0,70687.0,0.0002]
[1773253966643,0.236392,70695.0,70687.0,1e-08]
[1773253966994,0.236392,70695.0,70677.0,0.0235362]
[1773253966995,0.14052596,70694.0,70680.0,0.07074113]
[1773253967211,0.14052596,70696.0,70677.0,0.09428024]
[1773253967413,0.07073236,70689.0,70677.0,0.09428024]
[1773253967622,0.07073236,70689.0,70677.0,0.09445274]
[1773253967750,0.07073123,70691.0,70677.0,0.09445274]
[1773253967951,0.07073123,70691.0,70677.0,0.06681042]
[1773253968170,0.236392,70690.0,70677.0,0.09034662]
[1773253969710,0.30712408,70690.0,70677.0,0.00054318]
[1773253969926,0.30712408,70690.0,70678.0,0.02580571]
[1773253970147,0.07072934,70693.0,70678.0,0.02580571]
[1773253970628,0.07072934,70693.0,70678.0,0.02597821]
[1773253972163,0.0122977,70692.0,70679.0,0.07074237]
[1773253972589,0.0122977,70692.0,70677.0,0.00037068]
[1773253972826,0.1258076,70690.0,70671.0,1e-08]
[1773253973004,0.02570115,70689.0,70671.0,0.00011165]
[1773253973421,0.02570115,70691.0,70671.0,0.00011165]
[1773253974175,0.02570115,70689.0,70671.0,0.00011165]
[1773253975899,0.02670115,70689.0,70671.0,0.00011165]
[1773253976340,0.02570115,70687.0,70671.0,0.00011165]
[1773253976954,0.02555976,70687.0,70671.0,0.00011165]
[1773253977097,0.0254183,70687.0,70671.0,0.00011165]
[1773253978394,0.02570115,70685.0,70663.0,0.00141375]
[1773253978539,0.02570115,70685.0,70664.0,0.07075738]
[1773253978864,0.02570115,70685.0,70664.0,0.02580571]
[1773253979444,0.02570115,70685.0,70663.0,0.00152535]
[1773253980290,0.07073736,70684.0,70664.0,0.02580571]
[1773253981601,0.02570115,70688.0,70664.0,0.02580571]
[1773253981803,0.07073136,70690.0,70664.0,0.02580571]
[1773253982431,0.07073136,70690.0,70666.0,0.02580571]
[1773253982992,0.07072335,70698.0,70671.0,0.02580571]
[1773253983220,0.00022001,70690.0,70671.0,0.02580571]
[1773253983420,0.07072335,70698.0,70671.0,0.02580571]
[1773253983793,0.07094336,70698.0,70671.0,0.02580571]
[1773253984342,0.07094336,70698.0,70663.0,0.07248275]
[1773253984343,0.00022001,70698.0,70683.0,0.07073836]
[1773253984484,0.00022001,70698.0,70684.0,0.02580571]
[1773253984708,0.07094345,70698.0,70684.0,0.02580571]
[1773253984914,0.00022001,70698.0,70684.0,0.02580571]
[1773253986143,0.00022001,70698.0,70684.0,0.02680571]
[1773253986320,0.00022001,70698.0,70685.0,0.07073636]
[1773253986502,0.00022001,70698.0,70686.0,0.02580571]
[1773253986916,0.00022001,70698.0,70685.0,0.07073636]
[1773253986917,0.08235363,70709.0,70691.0,0.02580571]
[1773253987501,0.08246512,70709.0,70691.0,0.02580571]
[1773253987921,0.0824647,70709.0,70691.0,0.02580571]
[1773253988566,0.0824647,70709.0,70693.0,0.02580571]
[1773253989331,0.01175231,70709.0,70693.0,0.02580571]
[1773253990496,0.01175231,70709.0,70695.0,0.02580571]
[1773253990638,0.08246469,70709.0,70695.0,0.02580571]
[1773253991750,0.0826847,70709.0,70695.0,0.02580571]
[1773253992366,0.01197232,70709.0,70695.0,0.02580571]
[1773253992584,0.08268499,70709.0,70696.0,0.09653106]
[1773253994024,0.01197232,70709.0,70696.0,0.09653106]
[1773253994232,0.0707085,70713.0,70697.0,0.02580571]
[1773253994407,0.13934389,70712.0,70697.0,0.0259172]
[1773253994609,0.21005473,70711.0,70699.0,0.02580571]
[1773253994808,0.13934389,70710.0,70699.0,0.02580571]
[1773253995060,0.13934389,70709.0,70699.0,0.02580571]
[1773253995301,0.13934389,70708.0,70683.0,0.07073749]
[1773253995535,0.16859776,70705.0,70684.0,0.02580571]
[1773253995726,0.13934389,70704.0,70684.0,0.02580571]
[1773253995892,0.05559425,70703.0,70684.0,0.02580571]
[1773253996081,0.00011162,70708.0,70684.0,0.02580571]
[1773253996753,0.00011162,70708.0,70686.0,0.02580571]
[1773253997027,0.00036142,70717.0,70698.0,0.12604305]
[1773253997173,0.00036142,70717.0,70699.0,0.02580571]
[1773253997555,0.02570115,70715.0,70685.0,0.07073636]
[1773253997769,0.02581279,70715.0,70686.0,0.02580571]
[1773253998672,0.00011164,70715.0,70688.0,0.02580571]
[1773253998881,0.00011164,70715.0,70691.0,0.02580571]
[1773253999281,0.00022001,70709.0,70691.0,0.02580571]
[1773253999688,1e-08,70717.0,70691.0,0.02580571]
[1773253999894,1e-08,70717.0,70691.0,0.02591735]
[1773254000936,1e-08,70717.0,70693.0,0.02073637]
[1773254002119,1e-08,70717.0,70693.0,0.02173637]
[1773254002723,1e-08,70717.0,70693.0,0.02273637]
[1773254003281,1e-08,70717.0,70695.0,0.02073637]
[1773254004635,1e-08,70717.0,70695.0,0.02173637]
[1773254005009,1e-08,70717.0,70695.0,0.02073637]
[1773254005210,1e-08,70717.0,70695.0,0.02173637]
[1773254005405,1e-08,70717.0,70697.0,0.02073637]
[1773254006649,0.09276652,70721.0,70697.0,0.02073637]
[1773254006853,0.09276652,70721.0,70696.0,0.07072535]
[1773254006854,0.02206609,70720.0,70696.0,0.07072535]
[1773254007200,0.02206609,70720.0,70697.0,0.02073637]
[1773254007409,0.00022001,70724.0,70699.0,0.02073637]
[1773254007710,0.00022001,70724.0,70698.0,0.07072335]
[1773254007711,0.00022001,70724.0,70713.0,0.02073637]
[1773254008736,1e-08,70724.0,70713.0,0.02073637]
[1773254008930,0.02206609,70731.0,70713.0,0.02073637]
[1773254009165,0.21051901,70734.0,70713.0,0.02073637]
[1773254009338,0.00022001,70732.0,70713.0,0.02173637]
[1773254009546,0.00022001,70732.0,70715.0,0.02073637]
[1773254010411,0.01163305,70737.0,70715.0,0.02073637]
[1773254010533,0.01200524,70737.0,70715.0,0.02073637]
[1773254011620,0.01200524,70737.0,70721.0,0.02073637]
[1773254013685,0.01200524,70737.0,70723.0,0.02073637]
[1773254015403,0.02206609,70740.0,70722.0,0.07069935]
[1773254015621,0.02206609,70740.0,70711.0,0.07070943]
[1773254015622,0.02206609,70736.0,70713.0,0.07070835]
[1773254016682,0.02206609,70736.0,70713.0,0.09144472]
[1773254019239,0.02206609,70734.0,70713.0,0.09144472]
[1773254021283,0.02206609,70734.0,70697.0,0.07072435]
[1773254021284,0.01971437,70732.0,70697.0,0.07072435]
[1773254021489,0.14003499,70731.0,70698.0,0.07072035]
[1773254021726,0.01971437,70729.0,70698.0,0.07072035]
[1773254022048,0.01971437,70727.0,70698.0,0.07072035]
[1773254022251,0.01971437,70725.0,70698.0,0.07072035]
[1773254022469,0.01971437,70724.0,70698.0,0.07072035]
[1773254022645,0.14003499,70730.0,70698.0,0.07092035]
[1773254022844,0.01971437,70728.0,70698.0,0.07092035]
[1773254023069,0.01971437,70726.0,70698.0,0.07092035]
[1773254023201,0.01971437,70724.0,70698.0,0.07092035]
[1773254023397,0.01971437,70722.0,70698.0,0.07092035]
[1773254023646,0.01971437,70722.0,70699.0,0.02064644]
[1773254024000,0.14003499,70723.0,70701.0,0.02064644]
[1773254024246,0.14003499,70724.0,70701.0,0.02064644]
[1773254024446,0.09041141,70725.0,70701.0,0.02064644]
[1773254024661,0.01971437,70724.0,70701.0,0.02064644]
[1773254025635,0.07069835,70723.0,70702.0,0.07071935]
[1773254025861,0.01971437,70722.0,70703.0,0.02064644]
[1773254026270,0.01971437,70722.0,70698.0,0.0002]
[1773254026470,0.01971437,70722.0,70671.0,0.35200996]
[1773254026471,0.01971437,70702.0,70671.0,1e-08]
[1773254026737,0.2107472,70719.0,70663.0,0.00161375]
[1773254026738,0.01971437,70699.0,70663.0,0.0723719]
[1773254026936,0.01971437,70699.0,70657.0,0.07134538]
[1773254027168,0.01971437,70699.0,70659.0,0.07076161]
[1773254027372,0.12604305,70690.0,70657.0,0.00058103]
[1773254027572,0.12604305,70690.0,70640.0,0.01167449]
[1773254027573,0.01971437,70689.0,70651.0,0.07076982]
[1773254027757,0.01971437,70687.0,70654.0,0.03098077]
[1773254029778,0.01992787,70685.0,70653.0,0.0707674]
[1773254031880,0.07073936,70684.0,70653.0,0.0707674]
[1773254032092,0.01992987,70684.0,70661.0,0.0189692]
[1773254033671,0.01978841,70684.0,70661.0,0.0189692]
[1773254033917,0.07073793,70684.0,70662.0,0.07075938]
[1773254034083,0.01992787,70683.0,70662.0,0.07075938]
[1773254034299,0.01992787,70683.0,70663.0,0.0189692]
[1773254036478,0.01992787,70683.0,70664.0,0.07075738]
[1773254037569,0.01992787,70685.0,70665.0,0.0189692]
[1773254038524,0.01992787,70685.0,70666.0,0.07075538]
[1773254038736,0.01992787,70696.0,70667.0,0.0189692]
[1773254039176,0.01992787,70696.0,70666.0,0.07075538]
[1773254039583,0.01992787,70696.0,70667.0,0.0189692]
[1773254040355,0.0002731,70697.0,70667.0,0.0189692]
[1773254040523,0.01992787,70696.0,70667.0,0.0189692]
[1773254040734,0.01992787,70696.0,70669.0,0.0189692]
[1773254041966,0.01992787,70696.0,70669.0,0.0199692]
[1773254042389,0.07071839,70703.0,70669.0,0.0199692]
[1773254042390,0.03256817,70737.0,70672.0,0.593491]
[1773254042626,0.03256817,70737.0,70669.0,0.001]
[1773254042627,0.07070537,70716.0,70682.0,0.0189692]
[1773254042853,0.07070935,70713.0,70685.0,0.0189692]
[1773254043070,0.07860492,70712.0,70685.0,0.0189692]
[1773254043282,0.00789515,70712.0,70685.0,0.0189692]
[1773254043496,0.00762205,70712.0,70685.0,0.0189692]
[1773254043712,0.07070497,70717.0,70685.0,0.0189692]
[1773254043930,0.07070497,70717.0,70685.0,0.01908084]
[1773254044140,0.00022001,70704.0,70685.0,0.01908084]
[1773254045002,0.00022001,70711.0,70686.0,0.07073536]
[1773254045184,0.00022001,70711.0,70687.0,0.0189692]
[1773254047174,0.00022001,70711.0,70688.0,0.07073336]
[1773254047377,0.00022001,70711.0,70689.0,0.0189692]
[1773254049206,0.00022001,70711.0,70691.0,0.0189692]
[1773254051141,0.00022001,70711.0,70693.0,0.0189692]
[1773254052372,0.00600102,70716.0,70693.0,0.0189692]
[1773254052573,0.00022001,70719.0,70693.0,0.0189692]
[1773254052812,0.00022001,70719.0,70701.0,0.0189692]
[1773254053009,0.0003669,70723.0,70701.0,0.0189692]
[1773254053210,0.0003669,70723.0,70703.0,0.0189692]
[1773254054844,0.0003669,70723.0,70703.0,0.0209692]
[1773254055032,0.0003669,70723.0,70703.0,0.0199692]
[1773254055360,0.0003669,70723.0,70705.0,0.0189692]
[1773254055795,0.01184711,70726.0,70705.0,0.0189692]
[1773254055975,0.00141375,70733.0,70711.0,0.0189692]
[1773254056382,0.00141375,70733.0,70710.0,0.12603904]
[1773254056383,1e-08,70733.0,70713.0,0.0189692]
[1773254056599,1e-08,70733.0,70717.0,0.0189692]
[1773254057334,0.00022001,70745.0,70722.0,0.0189692]
[1773254057538,0.0003722,70745.0,70731.0,0.0189692]
[1773254058084,0.01124,70757.0,70731.0,0.0189692]
[1773254058283,0.00055131,70748.0,70731.0,0.0189692]
[1773254059463,0.00055131,70748.0,70732.0,0.07068936]
[1773254059668,0.00055131,70748.0,70733.0,0.0189692]
[1773254061055,0.00055131,70748.0,70733.0,0.0209692]
[1773254061454,0.00055131,70748.0,70734.0,0.07068736]
[1773254061658,0.00055131,70748.0,70735.0,0.01495287]
[1773254063505,0.00022001,70752.0,70737.0,0.01495287]
[1773254063700,0.00022001,70752.0,70737.0,0.01532506]
[1773254064706,0.00022001,70752.0,70737.0,0.01518367]
[1773254064896,0.00022001,70752.0,70737.0,0.01618367]
[1773254065310,0.00022001,70752.0,70737.0,0.01518367]
[1773254065884,0.00022001,70752.0,70739.0,0.01488218]
[1773254067694,0.00022001,70748.0,70739.0,0.01488218]
[1773254067889,0.00022001,70748.0,70740.0,0.07068136]
[1773254068059,0.00022001,70748.0,70741.0,0.01488218]
[1773254068476,0.0119937,70760.0,70741.0,0.01488218]
[1773254068677,0.0119937,70760.0,70751.0,0.01488218]
[1773254070444,0.0119937,70760.0,70752.0,0.07066938]
[1773254070684,0.0119937,70760.0,70753.0,0.01488218]
[1773254070889,0.00022001,70763.0,70753.0,0.01488218]
[1773254072852,0.00022001,70763.0,70754.0,0.07066738]
[1773254073064,0.00022001,70763.0,70676.0,0.5627057]
[1773254073065,0.00022001,70763.0,70706.0,0.04907064]
[1773254073330,0.12603904,70740.0,70706.0,0.07071491]
[1773254073520,0.12603904,70750.0,70706.0,0.07071491]
[1773254073720,0.12603904,70750.0,70706.0,0.08559709]
[1773254074013,0.109098,70749.0,70706.0,0.08559709]
[1773254074214,0.1085168,70762.0,70710.0,0.12603904]
[1773254074411,0.21022368,70762.0,70712.0,0.01488218]
[1773254074585,0.2105958,70762.0,70712.0,0.01488218]
[1773254074971,0.2105958,70762.0,70714.0,0.01488218]
[1773254075178,0.07103151,70762.0,70731.0,0.0002]
[1773254075376,0.00022001,70760.0,70731.0,0.0002]
[1773254076881,0.00122001,70760.0,70731.0,0.0002]
[1773254077880,0.07066238,70759.0,70732.0,0.07068936]
[1773254079705,0.07166238,70759.0,70732.0,0.07068936]
[1773254082087,0.07066238,70759.0,70732.0,0.07068936]
[1773254082486,0.07166238,70759.0,70732.0,0.07068936]
[1773254083026,0.07066238,70759.0,70732.0,0.07068936]
[1773254083261,0.07166238,70759.0,70732.0,0.07068936]
[1773254083665,0.07066238,70759.0,70732.0,0.07068936]
[1773254084067,0.07166238,70759.0,70732.0,0.07068936]
[1773254084481,0.07166238,70759.0,70732.0,0.08557154]
[1773254084971,0.07166238,70759.0,70733.0,0.01488218]
[1773254085391,0.07066238,70759.0,70733.0,0.01488218]
[1773254086749,0.07066238,70759.0,70735.0,0.01488218]
[1773254088406,0.07066238,70759.0,70731.0,0.0002]
[1773254088407,0.00812761,70758.0,70731.0,0.0002]
[1773254088607,0.00812761,70758.0,70700.0,0.09343447]
[1773254088608,0.00783647,70731.0,70700.0,0.09343447]
[1773254088810,0.00783647,70729.0,70700.0,0.09343447]
[1773254088961,0.14025441,70729.0,70700.0,0.09343447]
[1773254089164,0.00783647,70728.0,70704.0,0.0002]
[1773254089900,0.00783647,70728.0,70704.0,0.00031161]
[1773254090094,0.07069136,70730.0,70705.0,0.01087149]
[1773254090298,0.00774712,70727.0,70705.0,0.01087149]
[1773254091208,0.07069535,70726.0,70706.0,0.07071535]
[1773254091447,0.07069535,70726.0,70707.0,0.01087149]
[1773254091448,0.07815779,70726.0,70707.0,0.01087149]
[1773254091579,0.07069483,70727.0,70707.0,0.01087149]
[1773254093452,0.07169483,70727.0,70709.0,0.01087149]
[1773254093623,0.07069483,70727.0,70709.0,0.01087149]
[1773254095273,0.07069061,70731.0,70710.0,0.07071135]
[1773254095473,0.07069061,70731.0,70712.0,0.01087149]
[1773254096428,0.07068436,70737.0,70712.0,0.01087149]
[1773254097225,0.07068436,70740.0,70713.0,0.07070835]
[1773254097425,0.07607945,70740.0,70714.0,0.01087149]
[1773254097633,0.0050276,70739.0,70714.0,0.01087149]
[1773254098457,0.07068036,70742.0,70714.0,0.01087149]
[1773254098633,0.07534394,70742.0,70714.0,0.01087149]
[1773254099038,0.00466358,70757.0,70714.0,0.01087149]
[1773254099492,0.00430301,70755.0,70716.0,0.01087149]
[1773254101451,0.00014134,70749.0,70717.0,0.07070435]
[1773254101653,0.00359203,70748.0,70718.0,0.01087149]
[1773254102645,0.00014134,70749.0,70721.0,0.01087149]
[1773254102825,0.00014134,70749.0,70723.0,0.01087149]
[1773254103811,0.00014134,70749.0,70725.0,0.01087149]
[1773254105023,0.00026774,70749.0,70725.0,0.01087149]
[1773254105748,0.00026774,70749.0,70725.0,0.01187149]
[1773254105983,0.00022001,70760.0,70730.0,0.12603904]
[1773254106159,0.07088176,70760.0,70731.0,0.01087149]
[1773254107163,0.07125388,70760.0,70731.0,0.01087149]
[1773254108192,0.07125388,70760.0,70733.0,0.01087149]
[1773254111217,0.07125388,70760.0,70735.0,0.01087149]
[1773254113325,0.07125388,70760.0,70737.0,0.01087149]
[1773254113707,0.07125388,70760.0,70733.0,0.07068736]
[1773254113708,0.12597416,70750.0,70708.0,0.0002]
[1773254113910,0.02481006,70739.0,70708.0,0.0002]
[1773254114084,0.02481006,70739.0,70708.0,0.07091311]
[1773254114301,0.16436773,70739.0,70708.0,0.07091311]
[1773254114502,0.13955767,70738.0,70709.0,0.01087149]
[1773254114660,0.02481006,70739.0,70709.0,0.01087149]
[1773254115281,0.07068336,70738.0,70710.0,0.07071135]
[1773254115469,0.07068336,70738.0,70711.0,0.01087149]
[1773254115643,0.07105525,70738.0,70711.0,0.01087149]
[1773254115881,0.21061292,70738.0,70711.0,0.01087149]
[1773254117372,0.00982152,70737.0,70705.0,0.01087149]
[1773254117592,0.01068266,70737.0,70712.0,0.01087149]
[1773254117794,0.00137189,70738.0,70712.0,0.01087149]
[1773254118234,0.00037189,70738.0,70712.0,0.01087149]
[1773254119365,0.0710553,70738.0,70712.0,0.01087149]
[1773254119573,0.00037189,70738.0,70712.0,0.01087149]
[1773254119862,0.07068436,70737.0,70714.0,0.01087149]
[1773254120073,0.07105625,70738.0,70714.0,0.01087149]
[1773254120234,0.00037189,70738.0,70714.0,0.01087149]
[1773254120841,1e-08,70738.0,70714.0,0.01087149]
[1773254121055,1e-08,70749.0,70721.0,0.00725143]
[1773254121251,1e-08,70749.0,70729.0,0.00725143]
[1773254121679,1e-08,70749.0,70730.0,0.07069136]
[1773254121879,1e-08,70749.0,70731.0,0.00725143]
[1773254122501,1e-08,70763.0,70740.0,0.00725143]
[1773254123031,1e-08,70764.0,70740.0,0.00725143]
[1773254124031,1e-08,70764.0,70742.0,0.00725143]
[1773254126405,1e-08,70764.0,70743.0,0.07067837]
[1773254126604,1e-08,70764.0,70744.0,0.00725143]
[1773254128607,1e-08,70764.0,70746.0,0.00725143]
[1773254128813,0.00694257,70763.0,70745.0,0.07067637]
[1773254129618,0.00694257,70763.0,70723.0,0.00725143]
[1773254129819,0.00694257,70763.0,70724.0,0.00725143]
[1773254130749,0.00694257,70761.0,70726.0,0.00725143]
[1773254131603,0.12597416,70760.0,70726.0,0.00725143]
[1773254131887,0.00694257,70759.0,70724.0,0.07069718]
[1773254132451,0.00694257,70759.0,70725.0,0.00725143]
[1773254132646,0.07066338,70758.0,70726.0,0.07069535]
[1773254132834,0.00694257,70757.0,70727.0,0.00725143]
[1773254134951,0.00694257,70755.0,70728.0,0.07069336]
[1773254135220,0.00694257,70755.0,70729.0,0.00725143]
[1773254135417,0.00694257,70755.0,70731.0,0.00725143]
[1773254136866,0.07066738,70754.0,70732.0,0.07068936]
[1773254137069,0.00694257,70753.0,70733.0,0.00725143]
[1773254138698,0.00694257,70753.0,70729.0,0.07068936]
[1773254138699,0.04571313,70729.0,70689.0,1e-08]
[1773254138902,0.00694257,70719.0,70689.0,0.00011162]
[1773254139081,0.00694257,70717.0,70689.0,0.00011162]
[1773254139755,0.12597416,70710.0,70673.0,0.07074749]
[1773254139924,0.00694257,70708.0,70679.0,0.00011164]
[1773254141050,0.07071249,70709.0,70682.0,0.00696521]
[1773254141643,0.07070735,70714.0,70682.0,0.00696521]
[1773254141791,0.07070735,70714.0,70704.0,0.0002]
[1773254141991,0.001,70708.0,70690.0,0.00696521]
[1773254142198,0.00653174,70713.0,70690.0,0.00696521]
[1773254142430,0.001,70708.0,70696.0,0.0002]
[1773254143067,0.001,70708.0,70698.0,0.00696521]
[1773254143485,0.001,70708.0,70697.0,0.07072435]
[1773254144973,0.07071024,70712.0,70697.0,0.07072435]
[1773254145803,0.00653174,70713.0,70697.0,0.07072435]